[Event "*** Titled Tuesday Blitz"]
[Site "Chess.com"]
[Date "2020.10.20"]
[Round "10"]
[White "NikolaGry"]
[Black "arminmusovic"]
[Result "0-1"]
[WhiteElo "2696"]
[BlackElo "2590"]
[TimeControl "180+1"]
[EndTime "11:59:08 PDT"]
[Termination "arminmusovic won on time"]

1. e4 {[%clk 0:03:00.9]} 1... c6 {[%clk 0:03:00.1]} 2. Nf3 {[%clk 0:03:00.3]}
2... d5 {[%clk 0:03:01]} 3. Nc3 {[%clk 0:02:59.6]} 3... dxe4 {[%clk 0:03:01.2]}
4. Nxe4 {[%clk 0:02:59.6]} 4... Nf6 {[%clk 0:03:02.1]} 5. Nxf6+ {[%clk
0:02:59.6]} 5... exf6 {[%clk 0:03:03]} 6. Be2 {[%clk 0:02:59.8]} 6... Bd6 {[%clk
0:03:03.4]} 7. O-O {[%clk 0:02:59.5]} 7... O-O {[%clk 0:03:04]} 8. d4 {[%clk
0:02:59.7]} 8... Re8 {[%clk 0:03:04.9]} 9. Re1 {[%clk 0:02:59.7]} 9... Nd7
{[%clk 0:03:05.4]} 10. c4 {[%clk 0:02:59.4]} 10... Nf8 {[%clk 0:03:05.9]} 11.
Be3 {[%clk 0:02:57.8]} 11... Bg4 {[%clk 0:03:05.9]} 12. Qb3 {[%clk 0:02:54.3]}
12... Qc7 {[%clk 0:02:56.7]} 13. g3 {[%clk 0:02:47.6]} 13... Rad8 {[%clk
0:02:48.6]} 14. c5 {[%clk 0:02:17.8]} 14... Be7 {[%clk 0:02:48.5]} 15. Bf4
{[%clk 0:01:56.3]} 15... Qc8 {[%clk 0:02:48]} 16. Rad1 {[%clk 0:01:43.4]} 16...
Ne6 {[%clk 0:02:45.7]} 17. Be3 {[%clk 0:01:42.6]} 17... Nc7 {[%clk 0:02:41.1]}
18. Nd2 {[%clk 0:01:13.9]} 18... Bh3 {[%clk 0:02:31.5]} 19. Nc4 {[%clk
0:01:10.2]} 19... Nd5 {[%clk 0:02:13.9]} 20. Bf3 {[%clk 0:01:02.3]} 20... Be6
{[%clk 0:02:04.4]} 21. Qa4 {[%clk 0:00:56.4]} 21... Qa8 {[%clk 0:01:42.2]} 22.
a3 {[%clk 0:00:51.6]} 22... Rd7 {[%clk 0:01:31.6]} 23. Qc2 {[%clk 0:00:49.6]}
23... Red8 {[%clk 0:01:29]} 24. b4 {[%clk 0:00:44.8]} 24... Qc8 {[%clk
0:01:22.7]} 25. Bc1 {[%clk 0:00:42.8]} 25... Bf8 {[%clk 0:01:14.2]} 26. Re2
{[%clk 0:00:36.9]} 26... g6 {[%clk 0:01:04]} 27. Bb2 {[%clk 0:00:35.1]} 27...
Bf5 {[%clk 0:01:03.7]} 28. Qb3 {[%clk 0:00:34.2]} 28... h5 {[%clk 0:00:58.4]}
29. Rde1 {[%clk 0:00:30.1]} 29... Qc7 {[%clk 0:00:54]} 30. b5 {[%clk 0:00:28.9]}
30... Bh3 {[%clk 0:00:47.3]} 31. Ne3 {[%clk 0:00:24.9]} 31... Ne7 {[%clk
0:00:41.3]} 32. d5 {[%clk 0:00:22]} 32... Nxd5 {[%clk 0:00:35]} 33. Nxd5 {[%clk
0:00:19.7]} 33... cxd5 {[%clk 0:00:35.3]} 34. Bxf6 {[%clk 0:00:19.7]} 34... Rc8
{[%clk 0:00:32.1]} 35. Bxd5 {[%clk 0:00:11.2]} 35... Qxc5 {[%clk 0:00:32.2]} 36.
Bf3 {[%clk 0:00:11.2]} 36... Rd6 {[%clk 0:00:25.3]} 37. Be5 {[%clk 0:00:10.3]}
37... Rb6 {[%clk 0:00:24.4]} 38. Bf4 {[%clk 0:00:07.9]} 38... Be6 {[%clk
0:00:23.2]} 39. Qd1 {[%clk 0:00:07.2]} 39... Re8 {[%clk 0:00:18.3]} 40. a4
{[%clk 0:00:06.7]} 40... Qb4 {[%clk 0:00:17]} 41. Qd3 {[%clk 0:00:05]} 41... Bf5
{[%clk 0:00:14.2]} 42. Qd1 {[%clk 0:00:03.8]} 42... Rxe2 {[%clk 0:00:14.1]} 43.
Rxe2 {[%clk 0:00:04]} 43... Re6 {[%clk 0:00:13.1]} 44. Rxe6 {[%clk 0:00:03.4]}
44... Bxe6 {[%clk 0:00:14]} 45. Bxb7 {[%clk 0:00:03.7]} 45... Qc4 {[%clk
0:00:12.3]} 46. Bc6 {[%clk 0:00:03.2]} 46... a6 {[%clk 0:00:12.2]} 47. Bf3
{[%clk 0:00:02.2]} 47... axb5 {[%clk 0:00:11.4]} 48. a5 {[%clk 0:00:02.6]} 48...
b4 {[%clk 0:00:11.5]} 49. Be2 {[%clk 0:00:01.9]} 49... Qc6 {[%clk 0:00:09.4]}
50. a6 {[%clk 0:00:02.8]} 50... Bd5 {[%clk 0:00:09.8]} 51. Qd3 {[%clk
0:00:02.9]} 51... Bh1 {[%clk 0:00:09.3]} 52. f3 {[%clk 0:00:03.3]} 52... b3
{[%clk 0:00:07.1]} 53. Kxh1 {[%clk 0:00:03.1]} 53... b2 {[%clk 0:00:07.5]} 54.
Qb1 {[%clk 0:00:02.6]} 54... Qc3 {[%clk 0:00:07.1]} 55. Kg2 {[%clk 0:00:01.3]}
55... Bc5 {[%clk 0:00:06.3]} 0-1

[Event "*** Titled Tuesday Blitz"]
[Site "Chess.com"]
[Date "2020.10.20"]
[Round "10"]
[White "mirceaparligras"]
[Black "GukeshDommaraju"]
[Result "1/2-1/2"]
[WhiteElo "2658"]
[BlackElo "2814"]
[TimeControl "180+1"]
[EndTime "11:59:09 PDT"]
[Termination "Game drawn - insufficient material"]

1. d4 {[%clk 0:03:00.9]} 1... Nf6 {[%clk 0:02:59.1]} 2. c4 {[%clk 0:03:00.7]}
2... e6 {[%clk 0:02:58.6]} 3. Nf3 {[%clk 0:03:00]} 3... d5 {[%clk 0:02:59]} 4.
Nc3 {[%clk 0:02:59.8]} 4... c5 {[%clk 0:02:59.2]} 5. cxd5 {[%clk 0:02:58.9]}
5... exd5 {[%clk 0:02:59.3]} 6. Bg5 {[%clk 0:02:54.4]} 6... Be6 {[%clk
0:02:58.9]} 7. e3 {[%clk 0:02:51.5]} 7... c4 {[%clk 0:02:54.5]} 8. Be2 {[%clk
0:02:47.8]} 8... Bb4 {[%clk 0:02:47.6]} 9. O-O {[%clk 0:02:46.8]} 9... O-O
{[%clk 0:02:47.7]} 10. Rc1 {[%clk 0:02:39.6]} 10... h6 {[%clk 0:02:44.7]} 11.
Bh4 {[%clk 0:02:36.4]} 11... g5 {[%clk 0:02:44]} 12. Bg3 {[%clk 0:02:35.2]}
12... Bxc3 {[%clk 0:02:44.3]} 13. bxc3 {[%clk 0:02:32.1]} 13... Ne4 {[%clk
0:02:44.6]} 14. Nd2 {[%clk 0:02:31.9]} 14... Nxg3 {[%clk 0:02:37.8]} 15. fxg3
{[%clk 0:02:26.5]} 15... Nd7 {[%clk 0:02:33.7]} 16. e4 {[%clk 0:02:24]} 16...
dxe4 {[%clk 0:02:27.9]} 17. Nxe4 {[%clk 0:02:23.3]} 17... f5 {[%clk 0:02:27.8]}
18. Nd2 {[%clk 0:01:58.7]} 18... Nb6 {[%clk 0:02:22.7]} 19. Bf3 {[%clk
0:01:53.3]} 19... Qd7 {[%clk 0:02:22.6]} 20. Re1 {[%clk 0:01:51.3]} 20... Rfe8
{[%clk 0:02:20.6]} 21. Re5 {[%clk 0:01:48.2]} 21... Bf7 {[%clk 0:02:20.3]} 22.
Rxe8+ {[%clk 0:01:19.7]} 22... Rxe8 {[%clk 0:02:19.8]} 23. Qf1 {[%clk
0:01:19.4]} 23... Qe7 {[%clk 0:02:11.8]} 24. g4 {[%clk 0:01:11.7]} 24... fxg4
{[%clk 0:02:00]} 25. Bxg4 {[%clk 0:01:11.5]} 25... Qe3+ {[%clk 0:01:59.7]} 26.
Qf2 {[%clk 0:01:09.8]} 26... Nd5 {[%clk 0:01:57.3]} 27. Qxe3 {[%clk 0:01:02.3]}
27... Rxe3 {[%clk 0:01:54.5]} 28. Nxc4 {[%clk 0:00:47.2]} 28... Rxc3 {[%clk
0:01:54.2]} 29. Rxc3 {[%clk 0:00:46.8]} 29... Nxc3 {[%clk 0:01:55.1]} 30. Nd6
{[%clk 0:00:47.1]} 30... Bd5 {[%clk 0:01:53.6]} 31. a3 {[%clk 0:00:38.8]} 31...
Kf8 {[%clk 0:01:52.2]} 32. Kf2 {[%clk 0:00:37.4]} 32... a5 {[%clk 0:01:46.3]}
33. Bf3 {[%clk 0:00:36.2]} 33... Ke7 {[%clk 0:01:42.7]} 34. Nxb7 {[%clk
0:00:32]} 34... Bxb7 {[%clk 0:01:41.2]} 35. Bxb7 {[%clk 0:00:31.6]} 35... Nb5
{[%clk 0:01:42.1]} 36. Ke3 {[%clk 0:00:21.1]} 36... Nxa3 {[%clk 0:01:41.6]} 37.
Kd3 {[%clk 0:00:21.1]} 37... Nb5 {[%clk 0:01:40]} 38. Bc6 {[%clk 0:00:18.4]}
38... Nc7 {[%clk 0:01:38]} 39. g3 {[%clk 0:00:15.9]} 39... Kd6 {[%clk
0:01:38.9]} 40. Ba4 {[%clk 0:00:15.9]} 40... Nd5 {[%clk 0:01:37.7]} 41. h4
{[%clk 0:00:15]} 41... Nf6 {[%clk 0:01:11.2]} 42. hxg5 {[%clk 0:00:14.8]} 42...
hxg5 {[%clk 0:01:12.1]} 43. Kc4 {[%clk 0:00:13.8]} 43... Ne4 {[%clk 0:01:12]}
44. g4 {[%clk 0:00:12.6]} 44... Nf2 {[%clk 0:01:06.8]} 45. Kb5 {[%clk
0:00:12.9]} 45... Nxg4 {[%clk 0:01:06.1]} 46. Bd1 {[%clk 0:00:11.5]} 46... Ne3
{[%clk 0:00:54.8]} 47. Bf3 {[%clk 0:00:11.7]} 47... Nc2 {[%clk 0:00:48.2]} 48.
Kxa5 {[%clk 0:00:11.1]} 48... Nxd4 {[%clk 0:00:48.6]} 49. Bh5 {[%clk 0:00:09.6]}
49... Kc5 {[%clk 0:00:47]} 50. Ka4 {[%clk 0:00:08.8]} 50... Kc4 {[%clk
0:00:47.3]} 51. Ka5 {[%clk 0:00:07.7]} 51... Kc5 {[%clk 0:00:38.3]} 52. Ka4
{[%clk 0:00:08]} 52... Ne6 {[%clk 0:00:38.6]} 53. Kb3 {[%clk 0:00:07.1]} 53...
Kd4 {[%clk 0:00:39]} 54. Kc2 {[%clk 0:00:06.7]} 54... Ke3 {[%clk 0:00:39.4]} 55.
Kd1 {[%clk 0:00:06.6]} 55... Nf4 {[%clk 0:00:39.9]} 56. Bg4 {[%clk 0:00:05.9]}
56... Kf2 {[%clk 0:00:37.1]} 57. Kd2 {[%clk 0:00:05.4]} 57... Ng2 {[%clk
0:00:35.5]} 58. Bc8 {[%clk 0:00:04.6]} 58... Ne3 {[%clk 0:00:36.4]} 59. Kd3
{[%clk 0:00:04.4]} 59... Kf3 {[%clk 0:00:36.5]} 60. Kd2 {[%clk 0:00:04.4]} 60...
Kf2 {[%clk 0:00:29.2]} 61. Kd3 {[%clk 0:00:04.7]} 61... Ng2 {[%clk 0:00:28.3]}
62. Kd2 {[%clk 0:00:04.4]} 62... Nh4 {[%clk 0:00:29.2]} 63. Kd3 {[%clk
0:00:04.8]} 63... Kf3 {[%clk 0:00:29]} 64. Kd2 {[%clk 0:00:05.3]} 64... g4
{[%clk 0:00:28.1]} 65. Bxg4+ {[%clk 0:00:04.4]} 1/2-1/2

[Event "*** Titled Tuesday Blitz"]
[Site "Chess.com"]
[Date "2020.10.20"]
[Round "10"]
[White "chessmadara"]
[Black "Jungle_Jaguar"]
[Result "0-1"]
[WhiteElo "2208"]
[BlackElo "2584"]
[TimeControl "180+1"]
[EndTime "11:59:13 PDT"]
[Termination "Jungle_Jaguar won by resignation"]

1. e4 {[%clk 0:03:00.9]} 1... c5 {[%clk 0:02:59.7]} 2. Nf3 {[%clk 0:02:55.6]}
2... d6 {[%clk 0:02:59.9]} 3. d4 {[%clk 0:02:53.2]} 3... Nf6 {[%clk 0:03:00.2]}
4. Nc3 {[%clk 0:02:52]} 4... cxd4 {[%clk 0:03:00.4]} 5. Nxd4 {[%clk 0:02:52.9]}
5... Nc6 {[%clk 0:03:01]} 6. Bg5 {[%clk 0:02:51.9]} 6... e6 {[%clk 0:02:58.8]}
7. Qd2 {[%clk 0:02:51.5]} 7... a6 {[%clk 0:02:59.2]} 8. O-O-O {[%clk 0:02:50.8]}
8... Bd7 {[%clk 0:02:59.7]} 9. f3 {[%clk 0:02:45.6]} 9... Be7 {[%clk 0:02:58.8]}
10. Kb1 {[%clk 0:02:43.2]} 10... b5 {[%clk 0:02:52.8]} 11. h4 {[%clk 0:02:39]}
11... h6 {[%clk 0:02:51.8]} 12. Bxf6 {[%clk 0:02:36.2]} 12... gxf6 {[%clk
0:02:47.3]} 13. h5 {[%clk 0:02:32.7]} 13... Qb6 {[%clk 0:02:46.7]} 14. Nb3
{[%clk 0:02:12.6]} 14... O-O-O {[%clk 0:02:30.2]} 15. Be2 {[%clk 0:01:33.1]}
15... Kb8 {[%clk 0:02:29.3]} 16. Rhe1 {[%clk 0:01:32.9]} 16... Bc8 {[%clk
0:02:28.4]} 17. Bf1 {[%clk 0:01:32.7]} 17... Ne5 {[%clk 0:02:23.2]} 18. Qe3
{[%clk 0:01:30]} 18... Qxe3 {[%clk 0:02:17.6]} 19. Rxe3 {[%clk 0:01:29.8]} 19...
Rhg8 {[%clk 0:02:17.6]} 20. Nd4 {[%clk 0:01:21]} 20... Bb7 {[%clk 0:02:11.6]}
21. Nde2 {[%clk 0:01:09.9]} 21... Rd7 {[%clk 0:01:57]} 22. Nf4 {[%clk
0:01:04.6]} 22... Bd8 {[%clk 0:01:56.5]} 23. Ree1 {[%clk 0:01:01.8]} 23... Ba5
{[%clk 0:01:54.7]} 24. Nfe2 {[%clk 0:00:54.5]} 24... Rc8 {[%clk 0:01:54]} 25. a3
{[%clk 0:00:54]} 25... Kc7 {[%clk 0:01:45.5]} 26. b4 {[%clk 0:00:53.7]} 26...
Bb6 {[%clk 0:01:46]} 27. Nd4 {[%clk 0:00:46.9]} 27... Kd8 {[%clk 0:01:45.1]} 28.
Kb2 {[%clk 0:00:46.2]} 28... Ke7 {[%clk 0:01:45]} 29. f4 {[%clk 0:00:36]} 29...
Nc4+ {[%clk 0:01:44.6]} 30. Bxc4 {[%clk 0:00:35.3]} 30... Rxc4 {[%clk
0:01:45.5]} 31. Nb3 {[%clk 0:00:28]} 31... Rd8 {[%clk 0:01:30.1]} 32. f5 {[%clk
0:00:26.4]} 32... Rg8 {[%clk 0:01:28.2]} 33. Rd2 {[%clk 0:00:25.6]} 33... Rg3
{[%clk 0:01:25.4]} 34. Rd3 {[%clk 0:00:22.8]} 34... Rxg2 {[%clk 0:01:23.8]} 35.
Red1 {[%clk 0:00:22.7]} 35... Bc7 {[%clk 0:00:53.3]} 36. Nc5 {[%clk 0:00:22.4]}
36... Bc8 {[%clk 0:00:46.8]} 37. Nb3 {[%clk 0:00:21.4]} 37... Rh2 {[%clk
0:00:23.6]} 38. fxe6 {[%clk 0:00:16.6]} 38... fxe6 {[%clk 0:00:23.7]} 39. Na5
{[%clk 0:00:14.8]} 39... Bxa5 {[%clk 0:00:22.8]} 40. bxa5 {[%clk 0:00:15.7]}
40... Rc6 {[%clk 0:00:15.3]} 41. Kb3 {[%clk 0:00:12.4]} 41... Rxh5 {[%clk
0:00:14.4]} 42. Ne2 {[%clk 0:00:12.2]} 42... Rhc5 {[%clk 0:00:11.6]} 43. Nd4
{[%clk 0:00:11.5]} 43... Rc7 {[%clk 0:00:12.2]} 44. R1d2 {[%clk 0:00:08.9]}
44... e5 {[%clk 0:00:12.5]} 45. Nf3 {[%clk 0:00:07.7]} 45... Be6+ {[%clk
0:00:12.6]} 46. Kb2 {[%clk 0:00:07.2]} 46... R7c6 {[%clk 0:00:11.5]} 47. Nh4
{[%clk 0:00:06.9]} 47... Rc4 {[%clk 0:00:11.7]} 48. Re2 {[%clk 0:00:05]} 48...
b4 {[%clk 0:00:11.6]} 49. Rg3 {[%clk 0:00:03.5]} 49... bxa3+ {[%clk 0:00:11.5]}
50. Kxa3 {[%clk 0:00:03.2]} 50... Rc3+ {[%clk 0:00:12.1]} 51. Rxc3 {[%clk
0:00:02.4]} 51... Rxc3+ {[%clk 0:00:13]} 52. Kb2 {[%clk 0:00:03.2]} 52... Rh3
{[%clk 0:00:13.7]} 53. Nf5+ {[%clk 0:00:02.6]} 53... Bxf5 {[%clk 0:00:14.1]} 54.
exf5 {[%clk 0:00:03.5]} 54... Rf3 {[%clk 0:00:14.5]} 55. Rh2 {[%clk 0:00:03.2]}
55... Rxf5 {[%clk 0:00:14.8]} 56. Rxh6 {[%clk 0:00:03.8]} 56... e4 {[%clk
0:00:14.3]} 57. Rh7+ {[%clk 0:00:04.1]} 57... Ke6 {[%clk 0:00:14.6]} 58. Ra7
{[%clk 0:00:05]} 58... Rxa5 {[%clk 0:00:15.2]} 0-1

[Event "*** Titled Tuesday Blitz"]
[Site "Chess.com"]
[Date "2020.10.20"]
[Round "10"]
[White "WuinaterJr"]
[Black "DenisQ"]
[Result "0-1"]
[WhiteElo "2531"]
[BlackElo "2677"]
[TimeControl "180+1"]
[EndTime "11:59:18 PDT"]
[Termination "DenisQ won on time"]

1. d4 {[%clk 0:03:00.9]} 1... Nf6 {[%clk 0:02:53.6]} 2. c4 {[%clk 0:03:00.8]}
2... c6 {[%clk 0:02:52.9]} 3. Nf3 {[%clk 0:02:59.7]} 3... d5 {[%clk 0:02:53.1]}
4. g3 {[%clk 0:03:00.2]} 4... Bf5 {[%clk 0:02:51.6]} 5. Bg2 {[%clk 0:03:00.2]}
5... e6 {[%clk 0:02:51.7]} 6. O-O {[%clk 0:03:00.6]} 6... Nbd7 {[%clk
0:02:51.9]} 7. Nc3 {[%clk 0:03:01]} 7... h6 {[%clk 0:02:50.5]} 8. Bf4 {[%clk
0:03:01]} 8... dxc4 {[%clk 0:02:48.3]} 9. Rc1 {[%clk 0:02:52.8]} 9... Nd5 {[%clk
0:02:41.3]} 10. Re1 {[%clk 0:02:24.2]} 10... b5 {[%clk 0:02:28.6]} 11. e4 {[%clk
0:02:17.3]} 11... Nxc3 {[%clk 0:02:28.4]} 12. bxc3 {[%clk 0:02:16]} 12... Bg4
{[%clk 0:02:28.5]} 13. d5 {[%clk 0:02:08.2]} 13... Nc5 {[%clk 0:02:21.6]} 14. h3
{[%clk 0:01:48]} 14... Bxf3 {[%clk 0:02:18.2]} 15. Qxf3 {[%clk 0:01:48.9]} 15...
Nd3 {[%clk 0:02:16.7]} 16. dxe6 {[%clk 0:01:48.5]} 16... fxe6 {[%clk 0:02:11.8]}
17. Qh5+ {[%clk 0:01:48.1]} 17... Kd7 {[%clk 0:02:11]} 18. Red1 {[%clk
0:01:34.9]} 18... Qf6 {[%clk 0:02:00.5]} 19. e5 {[%clk 0:01:16.5]} 19... Qf5
{[%clk 0:01:55.6]} 20. Qe2 {[%clk 0:01:15.4]} 20... Kc7 {[%clk 0:01:41.5]} 21.
Qf3 {[%clk 0:00:54]} 21... Rc8 {[%clk 0:01:26.3]} 22. Qxc6+ {[%clk 0:00:53.6]}
22... Kd8 {[%clk 0:01:26.5]} 23. Qb7 {[%clk 0:00:50.8]} 23... Rc7 {[%clk
0:01:10]} 24. Qb8+ {[%clk 0:00:50.4]} 24... Rc8 {[%clk 0:01:09.5]} 25. Qb7
{[%clk 0:00:49.4]} 25... Rc7 {[%clk 0:01:09.4]} 26. Qb8+ {[%clk 0:00:49.5]}
26... Rc8 {[%clk 0:01:09.7]} 27. Qxb5 {[%clk 0:00:49.8]} 27... Bc5 {[%clk
0:00:53.4]} 28. Kh2 {[%clk 0:00:41.8]} 28... Bxf2 {[%clk 0:00:36.2]} 29. Rb1
{[%clk 0:00:34.3]} 29... g5 {[%clk 0:00:33.5]} 30. Qa5+ {[%clk 0:00:30.4]} 30...
Ke8 {[%clk 0:00:31.8]} 31. Qa6 {[%clk 0:00:27]} 31... Kf7 {[%clk 0:00:28.3]} 32.
Rb7+ {[%clk 0:00:25.1]} 32... Kg6 {[%clk 0:00:28.3]} 33. Bc1 {[%clk 0:00:20]}
33... Qxe5 {[%clk 0:00:25.5]} 34. Re7 {[%clk 0:00:17.4]} 34... Rhe8 {[%clk
0:00:23]} 35. Rxe8 {[%clk 0:00:14.1]} 35... Rxe8 {[%clk 0:00:23.9]} 36. Rxd3
{[%clk 0:00:13.9]} 36... cxd3 {[%clk 0:00:23.3]} 37. Qxd3+ {[%clk 0:00:14.8]}
37... Kg7 {[%clk 0:00:23.2]} 38. c4 {[%clk 0:00:14.7]} 38... Re7 {[%clk
0:00:20.5]} 39. Bd2 {[%clk 0:00:14.1]} 39... Bd4 {[%clk 0:00:20.3]} 40. Qf3
{[%clk 0:00:12]} 40... Rf7 {[%clk 0:00:20]} 41. Qg4 {[%clk 0:00:10.7]} 41... Rf2
{[%clk 0:00:19.4]} 42. Bb4 {[%clk 0:00:09.3]} 42... Bc5 {[%clk 0:00:16.5]} 43.
Bxc5 {[%clk 0:00:07.5]} 43... Qxc5 {[%clk 0:00:17.4]} 44. Qxe6 {[%clk 0:00:08]}
44... Qd4 {[%clk 0:00:12.9]} 45. Qe7+ {[%clk 0:00:07.9]} 45... Rf7 {[%clk
0:00:12.8]} 46. Qe6 {[%clk 0:00:07.2]} 46... Qc5 {[%clk 0:00:11.3]} 47. Qe4
{[%clk 0:00:07]} 47... a5 {[%clk 0:00:10.1]} 48. Qe6 {[%clk 0:00:06.6]} 48... a4
{[%clk 0:00:07.3]} 49. Qe4 {[%clk 0:00:05.6]} 49... a3 {[%clk 0:00:07.5]} 50.
Qd3 {[%clk 0:00:06]} 50... Rf2 {[%clk 0:00:05.1]} 51. Qc3+ {[%clk 0:00:06]}
51... Kg6 {[%clk 0:00:04.3]} 52. Qd3+ {[%clk 0:00:06.2]} 52... Kf6 {[%clk
0:00:04.5]} 53. Qd8+ {[%clk 0:00:05.9]} 53... Ke5 {[%clk 0:00:04.3]} 54. Qe8+
{[%clk 0:00:05.6]} 54... Kd4 {[%clk 0:00:04.5]} 55. Qd7+ {[%clk 0:00:03.3]}
55... Kc3 {[%clk 0:00:04.7]} 56. Qe6 {[%clk 0:00:04]} 56... Kb2 {[%clk
0:00:04.1]} 57. Qe4 {[%clk 0:00:02.1]} 57... Kxa2 {[%clk 0:00:04.2]} 58. Qd3
{[%clk 0:00:01.4]} 58... Kb2 {[%clk 0:00:04.1]} 59. Qd1 {[%clk 0:00:01.3]} 59...
a2 {[%clk 0:00:04.1]} 0-1

[Event "*** Titled Tuesday Blitz"]
[Site "Chess.com"]
[Date "2020.10.20"]
[Round "10"]
[White "Kaslask"]
[Black "dopolian"]
[Result "0-1"]
[WhiteElo "2298"]
[BlackElo "2417"]
[TimeControl "180+1"]
[EndTime "11:59:18 PDT"]
[Termination "dopolian won on time"]

1. d4 {[%clk 0:03:00.9]} 1... Nf6 {[%clk 0:02:59.1]} 2. c4 {[%clk 0:03:00.6]}
2... c5 {[%clk 0:02:58.4]} 3. d5 {[%clk 0:02:59.7]} 3... e6 {[%clk 0:02:59]} 4.
Nc3 {[%clk 0:02:59.6]} 4... exd5 {[%clk 0:02:59.9]} 5. cxd5 {[%clk 0:02:59.4]}
5... d6 {[%clk 0:02:59.9]} 6. Nf3 {[%clk 0:02:56.5]} 6... g6 {[%clk 0:02:57.2]}
7. Bf4 {[%clk 0:02:55.2]} 7... a6 {[%clk 0:02:56.4]} 8. a4 {[%clk 0:02:53.8]}
8... Bg7 {[%clk 0:02:53.9]} 9. h3 {[%clk 0:02:53.5]} 9... O-O {[%clk 0:02:53.5]}
10. e3 {[%clk 0:02:53.4]} 10... Re8 {[%clk 0:02:53.2]} 11. Be2 {[%clk
0:02:53.2]} 11... Ne4 {[%clk 0:02:52.9]} 12. Nxe4 {[%clk 0:02:44.4]} 12... Rxe4
{[%clk 0:02:53.8]} 13. Qc2 {[%clk 0:02:42.7]} 13... Rb4 {[%clk 0:02:39.7]} 14.
Ra2 {[%clk 0:02:33.7]} 14... Bf5 {[%clk 0:02:37.9]} 15. Bd3 {[%clk 0:02:20.3]}
15... Bxd3 {[%clk 0:02:31.7]} 16. Qxd3 {[%clk 0:02:20.2]} 16... Rxb2 {[%clk
0:02:31.3]} 17. Rxb2 {[%clk 0:02:18.7]} 17... Bxb2 {[%clk 0:02:32.2]} 18. Qb3
{[%clk 0:02:16.2]} 18... Bg7 {[%clk 0:02:09.9]} 19. Qxb7 {[%clk 0:02:11]} 19...
Nd7 {[%clk 0:02:08.6]} 20. Bxd6 {[%clk 0:02:10.7]} 20... Bc3+ {[%clk 0:01:43.5]}
21. Ke2 {[%clk 0:02:06.4]} 21... Nf6 {[%clk 0:01:37.3]} 22. Be7 {[%clk
0:01:43.3]} 22... Qxd5 {[%clk 0:01:35.4]} 23. Qxd5 {[%clk 0:01:41.6]} 23... Nxd5
{[%clk 0:01:36.3]} 24. Bxc5 {[%clk 0:01:41]} 24... Rc8 {[%clk 0:01:26.3]} 25.
Bd4 {[%clk 0:01:37.3]} 25... Bxd4 {[%clk 0:01:25.6]} 26. Nxd4 {[%clk 0:01:37.1]}
26... Nc3+ {[%clk 0:01:25.9]} 27. Kd3 {[%clk 0:01:21.6]} 27... Nxa4 {[%clk
0:01:26.8]} 28. Ra1 {[%clk 0:01:19.9]} 28... Nc5+ {[%clk 0:01:13.1]} 29. Ke2
{[%clk 0:01:19.1]} 29... Rb8 {[%clk 0:01:00.5]} 30. Ra2 {[%clk 0:01:10.6]} 30...
Rb6 {[%clk 0:00:56.2]} 31. Nf3 {[%clk 0:01:06.9]} 31... Ne4 {[%clk 0:00:52.3]}
32. Kd3 {[%clk 0:01:03.2]} 32... f5 {[%clk 0:00:42.2]} 33. Nd4 {[%clk
0:01:02.2]} 33... Kf7 {[%clk 0:00:41.3]} 34. f3 {[%clk 0:01:01.2]} 34... Nc5+
{[%clk 0:00:40.2]} 35. Kc4 {[%clk 0:01:00.7]} 35... Nd7 {[%clk 0:00:40.6]} 36.
e4 {[%clk 0:00:59.2]} 36... fxe4 {[%clk 0:00:37.8]} 37. fxe4 {[%clk 0:00:59]}
37... Ne5+ {[%clk 0:00:36.8]} 38. Kd5 {[%clk 0:00:58.6]} 38... Nd3 {[%clk
0:00:35.1]} 39. Kc4 {[%clk 0:00:49.9]} 39... Ne5+ {[%clk 0:00:30.8]} 40. Kd5
{[%clk 0:00:49.7]} 40... Nd3 {[%clk 0:00:30.9]} 41. Rd2 {[%clk 0:00:45.5]} 41...
Nb2 {[%clk 0:00:14.3]} 42. e5 {[%clk 0:00:42.2]} 42... a5 {[%clk 0:00:12.8]} 43.
e6+ {[%clk 0:00:34.9]} 43... Ke7 {[%clk 0:00:09.8]} 44. Nc6+ {[%clk 0:00:34.5]}
44... Ke8 {[%clk 0:00:10.1]} 45. Kc5 {[%clk 0:00:33]} 45... Na4+ {[%clk
0:00:08]} 46. Kd6 {[%clk 0:00:32.1]} 46... Nc3 {[%clk 0:00:05.3]} 47. Kc7 {[%clk
0:00:29.6]} 47... Rxc6+ {[%clk 0:00:02]} 48. Kxc6 {[%clk 0:00:28.4]} 48... Ke7
{[%clk 0:00:02.2]} 49. Rd7+ {[%clk 0:00:22.4]} 49... Kxe6 {[%clk 0:00:02.7]} 50.
Rxh7 {[%clk 0:00:22.3]} 50... a4 {[%clk 0:00:03.3]} 51. Ra7 {[%clk 0:00:21.1]}
51... Kf5 {[%clk 0:00:03.5]} 52. Kc5 {[%clk 0:00:20.3]} 52... g5 {[%clk
0:00:02.6]} 53. Kc4 {[%clk 0:00:19.9]} 53... Ne2 {[%clk 0:00:02.3]} 54. Rxa4
{[%clk 0:00:19.1]} 54... Nf4 {[%clk 0:00:01.4]} 55. Ra2 {[%clk 0:00:12.7]} 55...
g4 {[%clk 0:00:01.8]} 56. h4 {[%clk 0:00:09.9]} 56... g3 {[%clk 0:00:01.8]} 57.
Kd4 {[%clk 0:00:09.6]} 57... Kg4 {[%clk 0:00:01.8]} 58. Ke4 {[%clk 0:00:09.6]}
58... Ng6 {[%clk 0:00:02.4]} 59. Ra6 {[%clk 0:00:06.5]} 59... Nxh4 {[%clk
0:00:02.6]} 60. Ra8 {[%clk 0:00:05.5]} 60... Nxg2 {[%clk 0:00:02.3]} 61. Rg8+
{[%clk 0:00:04.8]} 61... Kh3 {[%clk 0:00:02.7]} 62. Kf3 {[%clk 0:00:04.4]} 62...
Nh4+ {[%clk 0:00:03.2]} 63. Kf4 {[%clk 0:00:02.5]} 63... g2 {[%clk 0:00:03.4]}
0-1